bitfinex-derivatives/quotes_ETHF0:USTF0_20210703
["timestamp","ask_amount","ask_price","bid_price","bid_amount"]
[1625316237189,4.35734,2213.8,2213.7,26.82818889]
[1625316237389,3.68334,2213.8,2213.7,26.82818889]
[1625316237490,2.81094,2213.8,2213.7,26.82818889]
[1625316237792,2.81094,2213.8,2213.7,24.83645419]
[1625316238141,1.0,2214.8,2213.7,24.83645419]
[1625316238441,1.0,2214.8,2213.7,24.16752355]
[1625316238542,1.0,2214.7,2213.8,4.89278625]
[1625316238644,2.20527,2214.3,2214.2,2.20527]
[1625316238741,7e-05,2214.3,2214.2,2.20527]
[1625316238846,1.30413645,2215.7,2214.2,2.20527]
[1625316238946,1.30413645,2215.7,2214.2,4.50407]
[1625316239148,1.30413645,2215.7,2214.2,9.50407]
[1625316239296,1.30413645,2215.7,2214.3,16.46493473]
[1625316239597,14.9199,2215.9,2214.5,1.32998659]
[1625316239897,1.0,2215.8,2214.5,1.32998659]
[1625316239996,1.0,2215.8,2214.6,16.456233]
[1625316240699,3.20527,2215.3,2215.2,2.20527]
[1625316242560,5.83787,2215.3,2215.2,2.20527]
[1625316242660,8.04314,2215.3,2215.2,2.20527]
[1625316242971,8.04314,2215.3,2214.3,1.3300479]
[1625316243621,8.04314,2215.3,2214.2,1.33011291]
[1625316244819,3.20527,2214.7,2214.6,2.20527]
[1625316248931,2.20527,2214.7,2214.6,2.20527]
[1625316253389,3.20527,2214.7,2214.6,2.20527]
[1625316256952,1.0,2214.7,2214.6,2.20527]
[1625316257256,1.0,2214.7,2214.6,2.33902687]
[1625316258422,1.0,2214.9,2214.6,2.33902687]
[1625316258772,1.0,2214.9,2214.6,2.20527]
[1625316258872,1.0,2214.9,2214.7,2.20527]
[1625316258973,1.0,2214.9,2214.7,5.29347]
[1625316260730,2.20527,2215.0,2214.7,5.29347]
[1625316260831,1.0,2215.3,2214.9,2.20527]
[1625316260980,2.20527,2215.4,2214.9,3.10317]
[1625316261282,2.20527,2215.4,2215.0,1.33058676]
[1625316261382,2.20527,2215.4,2215.0,17.83297376]
[1625316261782,2.20527,2215.4,2215.0,16.502387]
[1625316262132,1.0,2215.3,2215.0,16.502387]
[1625316262881,1.0,2215.3,2215.2,2.20527]
[1625316273517,2.20527,2215.4,2215.2,2.20527]
[1625316274118,1.0,2215.3,2215.2,2.20527]
[1625316278683,4.2677,2215.3,2215.2,2.20527]
[1625316279934,4.2677,2215.3,2214.9,2.20527]
[1625316281135,3.20527,2215.0,2214.9,2.20527]
[1625316281588,3.20527,2215.0,2214.5,1.33152736]
[1625316281736,3.20527,2215.0,248.88,135.94146408]
[1625316281841,3.20527,2215.0,2213.5,15.1848]
[1625316281988,3.20527,2215.0,2213.9,4.759]
[1625316282187,3.20527,2215.0,2214.2,1.33161246]
[1625316283087,2.20527,2214.4,2214.3,2.20527]
[1625316283191,3.20527,2214.4,2214.3,2.20527]
[1625316283291,5.68977,2214.4,2214.3,2.20527]
[1625316284496,5.68977,2214.4,2214.3,2.33905332]
[1625316284997,5.68977,2214.4,2214.3,3.67061895]
[1625316285101,7.89504,2214.4,2214.3,3.67061895]
[1625316285352,7.89504,2214.4,2214.3,2.33905332]
[1625316286206,7.89504,2214.4,2214.3,3.67067526]
[1625316288758,1.0,2214.4,2214.3,3.67067526]
[1625316289059,1.0,2214.4,2214.3,2.33905332]
[1625316289720,1.0,2214.4,2214.3,3.67067275]
[1625316291129,3.20527,2214.4,2214.3,3.67067275]
[1625316293536,3.20527,2214.4,2214.3,2.33905332]
[1625316293936,3.20527,2214.4,2214.3,3.67107627]
[1625316294990,3.20527,2214.4,2214.3,2.33905332]
[1625316295540,3.20527,2214.4,2214.3,3.67139643]
[1625316296039,3.20527,2214.4,2214.3,2.33905332]
[1625316297994,3.20527,2214.4,2214.3,2.20527]
[1625316298399,3.20527,2214.4,2214.3,2.33905842]
[1625316299499,3.20527,2214.4,2214.3,2.20527]
[1625316307383,3.20527,2214.4,2214.3,2.33906108]
[1625316307783,3.20527,2214.4,2214.3,2.20527]
[1625316308234,3.20527,2214.4,2214.3,2.33906109]
[1625316308684,2.20527,2214.4,2214.3,2.33906109]
[1625316308799,2.20527,2214.7,2214.3,2.33906109]
[1625316308948,1.0,2214.4,2214.3,2.33906109]
[1625316309300,3.20527,2214.4,2214.3,2.33906109]
[1625316311753,2.20527,2214.4,2214.3,2.33906109]
[1625316312255,2.20527,2214.4,2214.3,3.67183927]
[1625316312453,3.20527,2214.4,2214.3,3.67183927]
[1625316312804,2.20527,2214.4,2214.3,3.67183927]
[1625316313105,3.20527,2214.4,2214.3,3.67183927]
[1625316313455,2.20527,2214.4,2214.3,3.67183927]
[1625316314006,3.20527,2214.4,2214.3,3.67183927]
[1625316314958,2.20527,2214.4,2214.3,3.67183927]
[1625316315812,2.20527,2214.4,2214.3,4.20498858]
[1625316316011,3.20527,2214.7,2214.3,4.20498858]
[1625316316609,3.20527,2214.7,2214.4,1.46666596]
[1625316317009,3.20527,2214.7,2214.4,1.33288561]
[1625316317359,3.20527,2214.7,2214.6,2.20527]
[1625316325938,3.20527,2214.7,2214.6,2.33904282]
[1625316330452,3.20527,2214.7,2214.6,2.20527]
[1625316332608,3.20527,2214.7,2214.6,2.33904918]
[1625316334924,3.20527,2214.7,2214.6,2.20527]
[1625316335282,3.20527,2214.7,2214.6,2.3390498]
[1625316335637,3.20527,2214.7,2214.6,2.20527]
[1625316336336,3.20527,2214.7,2214.6,2.33904953]
[1625316341750,2.20527,2214.7,2214.6,2.33904953]
[1625316342200,2.20527,2214.7,2214.6,3.67232797]
[1625316344105,3.20527,2214.7,2214.6,3.67232797]
[1625316344955,3.20527,2214.7,2214.6,2.33904953]
[1625316345866,2.20527,2214.7,2214.6,2.33904953]
[1625316346023,3.20527,2214.7,2214.6,2.33904953]
[1625316347771,3.20527,2214.7,2214.4,1.86663231]
[1625316347871,3.20527,2214.7,2214.1,3.46659761]
[1625316348071,3.20527,2214.7,2214.3,1.33343796]
[1625316348724,3.20527,2214.7,2213.2,3.46781929]
[1625316349326,3.20527,2214.7,2213.1,3.46799137]
[1625316349697,2.20527,2213.2,2213.1,2.20527]
[1625316350246,2.20527,2213.2,2213.1,2.87440837]
[1625316355056,2.20527,2213.2,2213.1,2.20527]
[1625316359025,3.20527,2213.2,2213.1,2.20527]
[1625316361881,3.20527,2213.2,2213.1,3.11387]
[1625316362330,3.20527,2213.2,2213.1,2.20527]
[1625316363339,3.20527,2213.2,2213.1,3.09677]
[1625316363590,3.20527,2213.2,2213.1,2.20527]
[1625316368411,3.20527,2213.2,2212.9,2.20527]
[1625316368916,3.20527,2213.2,2212.4,4.759]
[1625316369526,3.20527,2213.2,2212.5,0.13386447]
[1625316369925,4.41054,2212.6,2212.5,0.13386447]
[1625316370075,5.41054,2212.6,2212.5,0.13386447]
[1625316371328,4.41054,2212.6,2212.5,0.13386447]
[1625316371732,5.41054,2212.6,2212.5,0.13386447]
[1625316372482,5.41054,2212.6,2212.4,4.759]
[1625316377804,5.41054,2212.6,2212.3,2.20527]
[1625316381509,5.41054,2212.6,2212.0,38.20527]
[1625316382064,5.41054,2212.1,2212.0,38.20527]
[1625316382163,7.85944,2212.1,2212.0,38.20527]
[1625316384021,7.85944,2212.1,2212.0,36.0]
[1625316384321,6.85944,2212.1,2212.0,36.0]
[1625316384423,4.41054,2212.1,2212.0,36.0]
[1625316385677,5.41054,2212.1,2212.0,36.0]
[1625316392965,4.41054,2212.1,2212.0,36.0]
[1625316393165,4.41054,2212.1,2212.0,39.1827]
[1625316394120,4.41054,2212.1,2212.0,41.38797]
[1625316395523,2.20527,2212.1,2212.0,41.38797]
[1625316400185,3.20527,2212.1,2212.0,41.38797]
[1625316400584,2.20527,2212.1,2212.0,41.38797]
[1625316400685,3.20527,2212.1,2212.0,41.38797]
[1625316401237,2.20527,2212.1,2212.0,41.38797]
[1625316401787,3.20527,2212.1,2212.0,41.38797]
[1625316401987,3.20527,2212.1,2212.0,57.935465]
[1625316402599,2.20527,2212.1,2212.0,57.935465]
[1625316406948,2.20527,2212.1,2212.0,41.38797]
[1625316407151,3.20527,2212.1,2212.0,41.38797]
[1625316407558,3.20527,2212.1,2212.0,39.1827]
[1625316412067,2.20527,2212.1,2212.0,39.1827]
[1625316428241,2.20527,2212.1,2212.0,41.38797]
[1625316433059,2.20527,2212.1,2212.0,41.52186314]
[1625316436071,2.20527,2212.1,2212.0,40.52186314]
[1625316436519,1.20527,2212.1,2212.0,40.52186314]
[1625316436771,1.20527,2212.1,2212.0,38.52186314]
[1625316437121,1.20527,2212.1,2212.0,39.19129655]
[1625316437372,3.20527,2212.4,2212.1,0.79473]
[1625316437875,3.20527,2212.4,2212.2,0.13388703]
[1625316438324,3.20527,2212.4,2212.3,2.20527]
[1625316438728,3.20527,2212.4,2212.3,2.33915993]
[1625316442784,3.20527,2212.4,2212.3,2.20527]
[1625316444989,3.20527,2212.4,2212.3,5.89347]
[1625316445088,3.20527,2212.4,2212.3,6.02736979]
[1625316446440,2.20527,2212.4,2212.3,6.02736979]
[1625316446542,2.20527,2212.4,2212.3,6.69680681]
[1625316449346,3.41813662,2213.9,2212.3,6.69680681]
[1625316449452,1.0,2213.8,2212.3,6.69680681]
[1625316449547,15.7038,2213.8,2212.3,6.69680681]
[1625316449799,15.7038,2213.8,2212.4,2.14192185]
[1625316449901,15.7038,2213.8,2212.4,22.12574868]
[1625316450198,15.7038,2213.8,2212.5,0.80320362]
[1625316450399,2.20527,2213.0,2212.9,2.20527]
[1625316450549,3.20527,2213.0,2212.9,5.41547]
[1625316450898,3.20527,2213.0,2212.9,5.54933816]
[1625316452463,5.41054,2213.0,2212.9,5.54933816]
[1625316463344,5.41054,2213.0,2212.9,3.34406816]
[1625316463445,5.41054,2213.0,2212.9,0.13386816]
[1625316463747,5.41054,2213.0,2212.4,0.80333876]
[1625316464553,5.41054,2212.5,2212.4,0.80333876]
[1625316468121,5.41054,2212.5,2212.4,3.4754455]
[1625316471939,5.41054,2212.5,2212.4,0.80333876]
[1625316473190,5.41054,2212.5,2212.4,3.47568597]
[1625316473491,5.41054,2212.5,2212.4,0.80333876]
[1625316474396,5.41054,2212.5,2212.4,3.47590604]
[1625316475195,8.22114,2212.5,2212.4,3.47590604]
[1625316475646,8.22114,2212.5,2212.4,0.80333876]
[1625316478749,8.22114,2212.5,2212.4,0.13388979]
[1625316479549,8.22114,2212.5,2212.4,0.8033975]
[1625316480202,8.22114,2212.5,2212.4,0.13388979]
[1625316480603,8.22114,2212.5,2212.3,0.8034251]
[1625316481104,8.22114,2212.5,2212.3,3.47640922]
[1625316481715,5.41054,2212.5,2212.4,0.80341716]
[1625316483520,5.41054,2212.5,2212.4,3.47626037]
[1625316485775,5.41054,2212.5,2212.4,0.80341716]
[1625316485975,4.41054,2212.5,2212.4,0.80341716]
[1625316486125,5.41054,2212.5,2212.4,0.80341716]
[1625316486728,5.41054,2212.5,2212.4,3.47625868]
[1625316488832,1.0,2213.0,2212.4,3.47625868]
[1625316489133,1.0,2213.0,2212.4,0.80341716]
[1625316489284,1.0,2213.0,2212.5,0.80329518]
[1625316489483,1.0,2213.0,2212.6,2.67257142]
[1625316489986,1.0,2213.0,2212.7,0.80327189]
[1625316490734,2.20527,2212.8,2212.7,3.00854189]
[1625316491739,2.20527,2212.8,2212.7,5.68100327]
[1625316494296,2.20527,2212.8,2212.7,3.00854189]
[1625316494698,2.20527,2212.8,2212.7,5.68081081]
[1625316495451,2.20527,2212.8,2212.7,3.00854189]
[1625316496303,2.20527,2212.8,2212.7,5.68055364]
[1625316496604,2.20527,2212.8,2212.7,3.00854189]
[1625316500125,2.20527,2212.8,2212.7,6.48177306]
[1625316501428,2.20527,2212.8,2212.7,3.00854189]
[1625316503790,2.20527,2212.8,2212.7,5.68002902]
[1625316504191,3.20527,2212.8,2212.7,5.68002902]
[1625316504742,3.20527,2212.8,2212.7,3.00854189]
[1625316504892,2.20527,2212.8,2212.7,3.00854189]
[1625316505341,3.20527,2212.8,2212.7,3.00854189]
[1625316505596,2.20527,2212.8,2212.7,3.00854189]
[1625316506046,2.20527,2212.8,2212.7,5.67998395]
[1625316507248,2.20527,2212.8,2212.7,3.00854189]
[1625316507700,2.20527,2212.8,2212.7,5.67990318]
[1625316509507,2.20527,2212.8,2212.7,3.00854189]
[1625316510558,2.20527,2212.8,2212.7,5.67988109]
[1625316511057,2.20527,2212.8,2212.7,3.00854189]
[1625316513222,2.20527,2212.8,2212.7,5.67988281]
[1625316513476,2.20527,2212.8,2212.7,3.47461281]
[1625316513577,6.15317,2212.8,2212.7,3.47461281]
[1625316513677,6.15317,2212.8,2212.4,3.47281296]
[1625316514327,6.15317,2212.8,2212.1,33.79473]
[1625316514894,4.41054,2212.2,2212.1,33.79473]
[1625316515045,5.41054,2212.2,2212.1,33.79473]
[1625316521922,8.64554,2212.2,2212.1,33.79473]
[1625316527745,5.41054,2212.2,2212.1,33.79473]
[1625316533852,5.41054,2212.2,2212.1,33.9286484]
[1625316538009,5.41054,2212.2,2212.1,33.79473]
[1625316538563,8.59654,2212.2,2212.1,33.79473]
[1625316543691,8.59654,2212.2,2211.4,1.86838775]
[1625316543792,8.59654,2212.2,2211.3,1.86845228]
[1625316543793,5.0,2212.1,2211.3,1.86845228]
[1625316543891,8.59654,2212.2,2211.3,1.86845228]
[1625316543991,1.0,2212.0,2211.3,1.86845228]
[1625316544443,1.0,2212.0,2211.3,5.228e-05]
[1625316544942,1.0,2212.0,2210.7,16.71006991]
[1625316545092,4.41054,2210.8,2210.7,16.71006991]
[1625316545394,5.41054,2210.8,2210.7,16.71006991]
[1625316545646,5.41054,2210.8,2210.7,2.87825991]
[1625316545746,5.41054,2210.8,2210.7,0.13399]
[1625316545993,5.41054,2210.8,2210.3,8.22827269]
[1625316546093,5.41054,2210.8,2210.3,3.46927269]
[1625316546244,5.41054,2210.8,2210.1,2.20527]
[1625316547102,4.41054,2210.2,2210.1,2.20527]
[1625316547254,5.41054,2210.2,2210.1,2.20527]
[1625316547604,5.41054,2210.2,2210.1,2.33928112]
[1625316548355,5.41054,2210.2,2210.1,2.20527]
[1625316548504,7.81354,2210.2,2210.1,2.20527]
[1625316549057,7.81354,2210.2,2210.0,0.05]
[1625316552068,5.41054,2210.2,2210.0,0.05]
[1625316553120,8.16294,2210.2,2210.0,0.05]
[1625316558578,5.41054,2210.2,2210.0,0.05]
[1625316559729,15.5678,2211.2,2210.0,3.4857]
[1625316559954,15.5678,2211.2,2210.0,8.4857]
[1625316560050,15.5678,2211.2,2210.0,3.4857]
[1625316560298,15.5678,2211.2,2210.1,16.489866]
[1625316560399,15.5678,2211.2,2210.1,16.6238365]
[1625316560498,1.0,2212.6,2210.2,1.0]
[1625316560800,1.0,2212.6,2210.2,16.34956246]
[1625316560898,1.0,2212.6,2210.4,1.0]
[1625316561000,14.128,2212.7,2210.4,1.0]
[1625316561099,15.128,2212.7,2210.4,1.0]
[1625316561249,2.20527,2211.6,2211.5,5.16277]
[1625316563203,4.41054,2211.6,2211.5,5.16277]
[1625316564313,15.128,2212.7,2211.5,5.16277]
[1625316564412,14.128,2212.7,2211.5,5.16277]
[1625316565211,2.20527,2211.7,2211.5,5.16277]
[1625316565762,2.20527,2211.7,2211.5,2.20527]
[1625316583616,2.20527,2211.7,2211.5,6.86337]
[1625316583717,2.20527,2211.9,2211.5,6.86337]
[1625316583819,14.128,2212.7,2211.5,6.86337]
[1625316584017,14.128,2212.7,2211.6,16.286543]
[1625316584920,1.0,2213.5,2211.6,16.286543]
[1625316585021,0.8912,2213.9,2211.6,22.286543]
[1625316585117,0.8912,2213.9,2211.8,1.0]
[1625316585220,14.5725,2213.8,2211.8,1.0]
[1625316585370,14.5725,2213.8,2212.4,4.77947]
[1625316585371,2.20527,2212.5,2212.4,4.77947]
[1625316587326,4.41054,2212.5,2212.4,4.77947]
[1625316593714,4.41054,2212.5,2212.4,2.20527]
[1625316593816,8.00944,2212.5,2212.4,2.20527]
[1625316594622,8.00944,2212.5,2211.7,14.3625]
[1625316595424,4.41054,2211.8,2211.7,14.3625]
[1625316609383,14.12,2213.0,2211.7,14.3625]
[1625316609481,2.20527,2212.1,2212.0,2.20527]
[1625316611531,2.20527,2212.1,2212.0,4.41054]
[1625316611684,2.20527,2212.4,2212.0,4.41054]
[1625316611784,2.20527,2212.4,2212.0,6.71474]
[1625316613592,2.20527,2212.4,2212.3,2.20527]
[1625316614894,2.20527,2212.4,2212.0,2.20527]
[1625316615549,2.20527,2212.1,2212.0,2.20527]
[1625316618109,2.20527,2212.1,2211.7,14.3625]
[1625316619618,5.71197,2211.8,2211.7,14.3625]
[1625316622926,2.20527,2211.8,2211.7,14.3625]
[1625316623629,2.20527,2211.8,2211.7,16.56777]
[1625316624786,2.20527,2211.8,2211.7,19.96297]
[1625316624983,7e-05,2211.8,2211.7,19.96297]
[1625316625386,7e-05,2211.8,2211.7,36.380471]
[1625316626287,14.12,2213.0,2211.7,36.380471]
[1625316627592,2.20527,2212.8,2212.7,2.20527]
[1625316629595,4.41054,2212.8,2212.7,2.20527]
[1625316629850,8.16414,2212.8,2212.7,2.20527]
[1625316631247,8.16414,2212.8,2212.4,2.20527]
[1625316631649,2.20527,2212.5,2212.1,2.20527]
[1625316633717,2.20527,2212.2,2211.9,2.20527]
[1625316634164,7e-05,2212.2,2211.9,2.20527]
[1625316634623,7e-05,2212.2,2212.0,16.298688]
[1625316635041,2.20527,2212.5,2212.0,16.298688]
[1625316635685,2.20527,2212.5,2212.4,4.41054]
[1625316636036,2.20527,2212.5,2212.4,8.19204]
[1625316639994,2.20527,2212.5,2211.7,15.3625]
[1625316640097,5.84667,2212.5,2211.7,14.3625]
[1625316641753,4.41054,2211.8,2211.7,16.56777]
[1625316643254,8.10744,2211.8,2211.7,16.56777]
[1625316647921,8.10744,2211.8,2211.7,14.3625]
[1625316653535,3.6969,2211.8,2211.7,14.3625]
[1625316653637,1.30428249,2212.3,2211.7,14.3625]
[1625316653838,2.20527,2212.0,2211.7,14.3625]
[1625316654395,2.20527,2212.2,2211.7,18.142]
[1625316655839,2.20527,2212.6,2212.1,4.41054]
[1625316657795,2.20527,2212.6,2212.5,2.20527]
[1625316672349,2.20527,2212.6,2212.5,5.66477]
[1625316678109,4.92607,2212.6,2211.8,2.33412816]
[1625316678207,4.92607,2212.6,2211.8,1.33412816]
[1625316678406,1.30364246,2212.5,2211.7,14.3625]
[1625316678859,1.30338196,2212.4,2211.7,14.3625]
[1625316679270,4.92607,2212.6,2211.7,14.3625]
[1625316679271,1.30305191,2212.3,2211.7,14.3625]
[1625316679978,4.41054,2211.8,2211.7,16.56777]
[1625316702607,1.30347621,2212.3,2211.7,16.56777]
[1625316702853,1.3032251,2212.4,2211.7,18.87177]
[1625316703206,1.3042498,2212.8,2211.7,20.20610237]
[1625316703357,1.3042498,2212.8,2211.8,0.13393874]
[1625316704256,3.5095198,2212.8,2212.5,2.20527]
[1625316705408,3.5095198,2212.8,2212.3,2.20527]
[1625316705409,6.9561198,2212.8,2211.7,15.69683237]
[1625316705959,6.9561198,2212.8,2211.8,0.13394124]
[1625316706312,2.20527,2212.2,2212.1,2.20527]
[1625316736402,4.56073267,2212.9,2212.7,2.20527]
[1625316736551,1.30583267,2212.9,2212.7,2.20527]
[1625316737003,1.3076184,2213.4,2212.7,2.20527]
[1625316738311,1.30737669,2213.5,2212.7,2.20527]
[1625316738508,1.30737669,2213.5,2213.4,4.41054]
[1625316738710,2.20527,2213.7,2213.4,4.41054]
[1625316741576,1.30898781,2214.0,2213.4,4.41054]
[1625316742237,1.30984303,2214.1,2213.4,4.41054]
[1625316742440,1.30984303,2214.1,2214.0,4.41054]
[1625316742689,3.51409249,2214.2,2214.0,4.41054]
[1625316744398,2.20527,2214.2,2214.0,4.41054]
[1625316744799,3.51356787,2214.2,2214.0,4.41054]
[1625316746207,2.20527,2214.2,2214.0,4.41054]
[1625316748762,3.51236771,2214.2,2214.0,4.41054]
[1625316749018,1.30682525,2214.1,2214.0,4.41054]
[1625316749163,1.30682525,2214.1,2212.5,15.3811]
[1625316749467,1.30666118,2214.0,2212.5,15.3811]
[1625316749866,1.30666118,2214.0,2212.5,16.3811]
[1625316749970,1.30668633,2214.1,2212.5,16.3811]
[1625316750421,1.30617171,2214.0,2212.5,16.3811]
[1625316750519,2.20527,2213.7,2213.5,2.20527]
[1625316757703,5.88887,2213.7,2213.5,2.20527]
[1625316760564,2.20527,2213.6,2213.5,2.20527]
[1625316766699,5.50197,2213.6,2213.5,2.20527]
[1625316768911,5.50197,2213.6,2213.3,2.20527]
[1625316769009,5.50197,2213.6,2212.5,16.3811]
[1625316769108,5.50197,2213.6,2212.5,15.3811]
[1625316770609,5.50197,2213.6,2213.0,2.20527]
[1625316772614,2.20527,2213.1,2213.0,2.20527]
[1625316772717,5.39787,2213.1,2213.0,2.20527]
[1625316778730,7.60314,2213.1,2213.0,2.20527]
[1625316779638,7.60314,2213.1,2212.8,2.20527]
[1625316786613,5.39787,2213.1,2212.8,2.20527]
[1625316786912,5.39787,2213.1,2212.9,2.20527]
[1625316797433,2.20527,2213.1,2212.9,5.56107]
[1625316798540,2.20527,2213.4,2212.9,5.56107]
[1625316798985,2.20527,2213.4,2213.3,2.20527]
[1625316802264,16.73135304,2214.2,2213.3,2.20527]
[1625316802360,1.31205304,2214.2,2213.3,2.20527]
[1625316803008,1.31205304,2214.2,2214.1,4.41054]
[1625316803110,2.20527,2214.3,2214.1,8.01144]
[1625316803315,1.31240948,2214.4,2214.1,8.01144]
[1625316803560,3.51727538,2214.5,2214.1,8.01144]
[1625316805116,3.51727538,2214.5,2214.4,2.20527]
[1625316805217,2.20527,2214.5,2214.4,2.20527]
[1625316805917,2.20527,2214.5,2214.1,2.20527]
[1625316806017,4.67777,2214.5,2214.1,2.20527]
[1625316806319,1.31091406,2214.4,2214.1,2.20527]
[1625316807028,2.20527,2214.2,2214.1,2.20527]
[1625316810025,1.31165918,2214.9,2214.1,2.20527]
[1625316810679,1.31208521,2215.1,2214.1,2.20527]
[1625316811127,1.31208521,2215.1,2215.0,2.20527]
[1625316811478,18.18607414,2215.2,2215.0,2.20527]
[1625316811578,3.51687414,2215.2,2215.0,2.20527]
[1625316812130,1.31160414,2215.2,2215.0,2.20527]
[1625316812380,4.19772442,2215.9,2215.0,2.20527]
[1625316812381,1.31307626,2215.7,2215.0,2.20527]
[1625316812730,2.62615252,2215.9,2215.0,2.20527]
[1625316812731,1.31361448,2215.9,2215.0,2.20527]
[1625316813183,1.31361448,2215.9,2215.6,2.20527]
[1625316813184,3.51888448,2215.9,2215.6,2.20527]
[1625316813285,2.20527,2215.9,2215.6,2.20527]
[1625316815089,2.20527,2215.9,2215.6,4.41054]
[1625316829515,2.20527,2215.9,2215.6,7.04574]
[1625316830726,2.20527,2216.2,2215.6,7.04574]
[1625316831229,2.20527,2216.2,2216.1,4.41054]
[1625316831327,2.20527,2216.2,2216.1,7.18254]
[1625316832378,1.0,2216.8,2216.1,7.18254]
[1625316833286,1.0,2216.8,2216.7,4.41054]
[1625316836843,0.0001,2216.8,2216.7,4.41054]
[1625316843276,4.41064,2216.8,2216.7,2.20527]
[1625316845384,0.0001,2216.8,2216.7,2.20527]
[1625316846484,0.0001,2216.8,2216.3,2.20527]
[1625316847337,2.20537,2216.8,2216.7,2.20527]
[1625316855122,2.20537,2216.8,2216.7,5.90247]
[1625316855719,0.0001,2216.8,2216.7,5.90247]
[1625316857267,0.0001,2216.8,2216.7,3.6972]
[1625316857821,0.0001,2216.8,2216.7,8.10774]
[1625316858421,0.0001,2216.8,2216.7,8.6972]
[1625316859872,0.0001,2216.8,2216.7,13.10774]
[1625316859973,0.0001,2216.8,2216.7,29.618296]
[1625316861428,2.20527,2218.1,2216.7,29.618296]
[1625316861877,2.20527,2218.1,2218.0,4.41054]
[1625316862428,2.20527,2218.1,2218.0,6.72574]
[1625316862632,2.20527,2218.4,2218.0,6.72574]
[1625316863880,2.20527,2218.4,2218.3,2.20527]
[1625316873653,15.5441,2219.5,2218.3,2.20527]
[1625316874053,2.20527,2219.4,2219.0,7.75124]
[1625316876820,2.20527,2219.4,2219.0,5.75124]
[1625316879973,14.0998,2220.3,2218.5,2.20527]
[1625316879974,2.20527,2218.7,2218.5,2.20527]
[1625316880226,5.80657,2218.7,2218.5,2.20527]
[1625316882079,2.20527,2218.6,2218.5,2.20527]
[1625316885543,2.20527,2218.6,2216.9,14.347]
[1625316885544,2.20527,2218.6,2217.6,1.0]
[1625316885693,2.20527,2218.6,2216.9,14.347]
[1625316886146,2.20527,2217.7,2217.6,2.20527]
[1625316889123,4.67297,2217.7,2217.4,2.20527]
[1625316890125,2.20527,2217.6,2217.4,2.20527]
[1625316893540,4.78927,2217.6,2217.4,2.20527]
[1625316896047,2.20527,2217.6,2217.4,2.20527]
[1625316898002,1.0,2218.7,2217.4,2.20527]
[1625316898099,16.9643,2219.3,2217.4,2.20527]
[1625316898248,2.20527,2218.4,2218.1,2.20527]
[1625316899661,2.20527,2218.4,2216.9,14.347]
[1625316900203,5.0,2219.0,2216.9,14.347]
[1625316900204,2.20527,2217.6,2217.5,2.20527]
[1625316900904,2.20527,2217.6,2217.3,2.20527]
[1625316902215,2.20527,2217.4,2217.3,2.20527]
[1625316902919,3.5037,2218.0,2217.3,2.20527]
[1625316903018,2.6136,2218.5,2217.3,2.20527]
[1625316903117,2.5446,2219.0,2217.4,1.0]
[1625316903321,3.85807776,2219.0,2217.4,1.0]
[1625316903619,5.0,2218.9,2217.4,1.0]
[1625316903720,5.0,2218.9,2217.3,2.20527]
[1625316904274,2.20527,2217.9,2217.8,2.20527]
[1625316904424,5.51937,2217.9,2217.8,2.20527]
[1625316904525,5.51937,2217.9,2217.3,2.20527]
[1625316906278,4.41054,2217.4,2217.3,2.20527]
[1625316915400,8.09284,2217.4,2217.3,2.20527]
[1625316916001,8.09284,2217.4,2217.0,2.20527]
[1625316916353,2.20527,2217.1,2216.9,14.347]
[1625316917306,7.20527,2217.1,2215.7,1.0]
[1625316917455,7.20527,2217.1,2215.2,2.65083122]
[1625316917556,7.20527,2217.1,2215.0,1.32625081]
[1625316917957,7.20527,2217.1,2214.7,1.32637796]
[1625316917958,1.31343028,2217.0,2214.7,1.32637796]
[1625316918257,2.20527,2216.0,2215.9,2.20527]
[1625316920220,2.20527,2216.0,2214.7,2.3267743]
[1625316920221,2.20527,2216.0,2214.7,1.3267743]
[1625316920323,2.20527,2215.4,2215.3,2.20527]
[1625316921086,4.81517,2215.4,2215.3,2.20527]
[1625316922286,4.41054,2215.4,2215.3,2.20527]
[1625316924139,4.41054,2215.4,2214.6,14.0333]
[1625316924340,2.20527,2214.9,2214.8,2.20527]
[1625316926198,2.20527,2214.9,2214.6,2.20527]
[1625316926349,2.20527,2214.7,2214.6,2.20527]
[1625316927001,2.20527,2214.7,2214.2,2.20527]
[1625316928306,2.20527,2214.3,2214.2,2.20527]
[1625316931817,2.20527,2214.7,2214.2,2.20527]
[1625316931918,2.20527,2214.7,2214.2,5.65187]
[1625316932317,2.20527,2214.7,2214.6,2.20527]
[1625316935842,2.20527,2214.7,2214.2,5.65187]
[1625316936343,2.20527,2214.7,2214.6,2.20527]
[1625316940152,2.20527,2214.7,2214.6,5.90457]
[1625316944561,2.20527,2214.7,2214.6,2.20527]
[1625316944660,2.20527,2214.7,2214.2,2.20527]
[1625316944761,5.81177,2214.7,2214.2,2.20527]
[1625316946417,2.20527,2214.3,2214.2,2.20527]
[1625316949175,2.20527,2214.7,2214.2,2.20527]
[1625316949273,2.20527,2214.7,2214.2,5.16407]
[1625316950444,2.20527,2214.7,2214.6,2.20527]
[1625316953599,2.20527,2214.7,2214.2,5.16407]
[1625316954455,2.20527,2214.7,2214.6,2.20527]
[1625316963122,2.20527,2214.7,2214.6,5.87977]
[1625316966104,2.20527,2214.7,2214.6,2.20527]
[1625316967160,2.20527,2214.7,2214.2,2.20527]
[1625316968563,2.20527,2214.3,2214.2,4.41054]
[1625316969115,4.97577,2214.3,2213.5,16.3143]
[1625316969216,4.97577,2214.3,2213.5,15.3143]
[1625316969316,4.97577,2214.3,2212.4,1.31962567]